bitfinex/quotes_ETHUSD_20240902
["timestamp","ask_amount","ask_price","bid_price","bid_amount"]
[1725242209713,0.05,2446.2,2446.1,4.5204587]
[1725242210004,0.05,2446.2,2446.1,4.52046195]
[1725242210174,0.05,2446.2,2446.1,4.43871243]
[1725242213118,0.05,2446.4,2446.3,2.0439]
[1725242213314,0.05,2446.4,2446.3,2.70033629]
[1725242214515,0.05,2446.4,2446.3,2.42827404]
[1725242214711,0.05,2446.4,2446.3,2.0439]
[1725242215848,0.05,2446.2,2446.1,2.04404]
[1725242216141,0.05,2445.8,2445.7,2.04432]
[1725242216615,0.05,2445.8,2445.7,2.12608701]
[1725242217516,0.05,2446.0,2445.9,2.04423]
[1725242220671,0.05,2446.0,2445.8,2.04428]
[1725242221377,0.1,2446.0,2445.8,2.04428]
[1725242221733,0.0816616,2446.2,2445.4,2.04464]
[1725242221734,0.05,2445.5,2445.4,2.04464]
[1725242222162,0.05,2445.5,2445.2,4.08955]
[1725242222360,0.05,2445.5,2445.3,2.0447]
[1725242224044,0.05,2445.5,2445.2,2.04476]
[1725242225650,0.05,2445.5,2445.3,2.04473]
[1725242226989,0.05,2445.5,2445.2,2.04476]
[1725242227196,0.05,2445.3,2445.2,2.04476]
[1725242227362,0.05,2445.3,2445.2,2.59476]
[1725242229356,0.05,2445.3,2445.2,2.04476]
[1725242231707,0.05,2445.3,2445.2,2.86843107]
[1725242231872,0.05,2445.5,2445.4,2.04465]
[1725242232057,0.05,2445.5,2445.4,5.45557919]
[1725242232253,0.05,2445.7,2445.6,4.08896]
[1725242232458,0.05,2445.7,2445.6,4.7207286]
[1725242234629,0.05,2445.7,2445.4,1.61404673]
[1725242234630,0.05,2445.7,2445.4,4.94319803]
[1725242234782,0.05,2445.7,2445.4,3.3291513]
[1725242234982,0.05,2445.7,2445.5,2.04451]
[1725242235584,0.05,2445.7,2445.6,2.04448]
[1725242235917,0.05,2445.7,2445.6,4.17072996]
[1725242237112,0.05,2445.7,2445.6,4.92071809]
[1725242237486,0.05,2445.7,2445.6,14.68221809]
[1725242238575,0.05,2445.8,2445.7,4.0888]
[1725242238915,0.05,2445.8,2445.7,4.17056564]
[1725242239410,0.05,2445.8,2445.7,6.18877102]
[1725242241273,0.1,2446.1,2445.7,5.42912232]
[1725242241514,0.1,2446.1,2446.0,2.04415]
[1725242241716,0.1,2446.1,2446.0,4.17005904]
[1725242241880,0.05,2446.3,2446.2,2.04398]
[1725242242635,0.05,2446.3,2446.2,4.08796]
[1725242245599,0.05,2446.3,2446.2,4.63796]
[1725242245788,0.05,2446.3,2446.2,6.48031731]
[1725242246211,0.1,2446.6,2446.5,2.04373]
[1725242246420,0.1,2446.6,2446.5,4.08746]
[1725242246734,0.1,2446.6,2446.5,4.57795142]
[1725242249612,0.1,2446.6,2446.5,4.57794501]
[1725242249787,0.1,2446.6,2446.5,4.16919901]
[1725242250791,0.1,2446.6,2446.5,4.08746]
[1725242251586,5.61268482,2447.4,2446.5,4.08746]
[1725242251587,0.05,2446.8,2446.5,2.04373]
[1725242251795,0.05,2447.0,2446.6,13.5791513]
[1725242252194,0.05,2446.8,2446.7,4.08712]
[1725242252429,0.05,2446.8,2446.7,4.63712]
[1725242252635,0.05,2446.8,2446.7,4.71884723]
[1725242252952,0.05,2446.8,2446.7,4.63712]
[1725242253441,0.1,2446.8,2446.7,2.04356]
[1725242253612,0.1,2446.8,2446.5,2.04366]
[1725242253613,1.04914,2446.8,2446.5,2.04366]
[1725242253813,1.04914,2446.8,2446.6,2.04362]
[1725242254022,0.1,2446.8,2446.6,2.04362]
[1725242260338,0.05,2446.6,2446.5,2.04366]
[1725242260655,0.1,2446.6,2446.5,2.04366]
[1725242269168,0.1,2446.4,2446.3,2.04386]
[1725242269405,0.1,2446.2,2446.1,4.08803]
[1725242269733,0.1,2446.2,2446.1,5.47790502]
[1725242272934,0.1,2446.2,2446.1,3.43387502]
[1725242273945,0.1,2446.2,2446.1,2.044]
[1725242274633,0.1,2446.2,2445.9,5.47824502]
[1725242274883,0.1,2446.2,2446.0,2.04415]
[1725242277238,0.1,2446.0,2445.7,4.08872]
[1725242277583,0.1,2446.0,2445.7,2.04435]
[1725242277732,0.05,2445.8,2445.7,5.687222]
[1725242278853,0.1,2445.8,2445.7,2.04435]
[1725242280647,0.1,2445.8,2445.7,2.12611746]
[1725242282601,5.04379,2446.5,2445.7,2.12611746]
[1725242282602,0.05,2446.0,2445.9,4.08846]
[1725242282783,0.05,2446.0,2445.9,15.07433502]
[1725242283802,0.05,2446.1,2446.0,4.0883]
[1725242284097,0.05,2446.1,2446.0,7.97422817]
[1725242285402,0.05,2446.1,2446.0,9.67625099]
[1725242286200,0.05,2446.1,2446.0,6.34032282]
[1725242286504,0.05,2446.1,2446.0,4.6383]
[1725242287772,12.9633,2446.7,2446.1,9.313]
[1725242287773,0.05,2446.3,2446.1,9.313]
[1725242288101,0.05,2446.3,2446.2,5.69401482]
[1725242290014,0.05,2446.3,2446.2,9.02994299]
[1725242290215,0.05,2446.4,2446.3,4.0878]
[1725242290513,0.05,2446.4,2446.3,6.20822509]
[1725242292417,0.1,2446.4,2446.3,6.20822509]
[1725242293717,0.05,2446.4,2446.3,15.84912509]
[1725242293921,0.1,2446.4,2446.3,14.36044479]
[1725242294581,0.05,2446.4,2446.3,14.36044479]
[1725242294781,0.05,2446.4,2446.3,16.48690787]
[1725242296116,0.1,2446.6,2446.5,4.08746]
[1725242296502,0.05,2446.6,2446.5,6.21293134]
[1725242296700,0.05,2446.8,2446.7,2.04356]
[1725242296907,0.05,2446.8,2446.7,4.16885333]
[1725242298885,0.05,2447.0,2446.9,2.0434]
[1725242299136,0.05,2447.0,2446.9,2.46026933]
[1725242300097,0.05,2447.0,2446.9,4.50366933]
[1725242302731,0.05,2447.0,2446.9,4.58539636]
[1725242302904,0.05,2447.0,2446.9,5.13539636]
[1725242303099,0.05,2447.0,2446.9,5.05366933]
[1725242306918,0.05,2447.0,2446.9,5.13539147]
[1725242310652,0.05,2447.1,2447.0,4.08662]
[1725242310893,3.0,2447.8,2447.1,9.1451]
[1725242310894,0.05,2447.6,2447.1,9.1451]
[1725242311162,0.05,2447.6,2447.5,14.59950047]
[1725242311332,0.1,2447.8,2447.7,4.08546]
[1725242311534,0.1,2447.8,2447.7,2.04273]
[1725242312356,0.05,2447.6,2447.5,2.04287]
[1725242313216,0.1,2447.6,2447.5,2.04287]
[1725242313897,9.3451,2447.4,2447.3,2.04303]
[1725242314327,0.05,2447.2,2447.1,2.04322]
[1725242314655,0.05,2447.2,2447.1,3.43242047]
[1725242315019,0.1,2447.2,2447.1,2.04322]
[1725242315247,0.1,2447.2,2446.9,3.43256047]
[1725242315248,0.1,2447.0,2446.9,3.43256047]
[1725242316099,0.1,2447.0,2446.9,2.04336]
[1725242318000,0.1,2447.0,2446.8,2.04347]
[1725242320107,0.05,2446.7,2446.6,2.04362]
[1725242321053,0.1,2446.7,2446.6,2.04362]
[1725242324813,0.1,2446.5,2446.4,2.04381]
[1725242325036,0.1,2446.5,2446.4,2.59381]
[1725242327036,0.1,2446.5,2446.4,2.04381]
[1725242327639,0.05,2446.5,2446.4,3.78420599]
[1725242327962,0.05,2446.5,2446.4,15.47931599]
[1725242328155,0.05,2446.5,2446.4,13.82066345]
[1725242329764,0.05,2446.7,2446.6,4.0873]
[1725242329965,0.05,2446.7,2446.6,8.05290853]
[1725242330163,0.05,2446.7,2446.6,9.76832938]
[1725242332042,0.05,2446.7,2446.6,9.76683741]
[1725242333157,0.05,2446.7,2446.6,19.68783741]
[1725242334064,0.05,2446.7,2446.6,6.35122888]
[1725242334260,0.05,2446.7,2446.6,4.63580803]
[1725242334434,0.05,2446.7,2446.6,2.59215803]
[1725242334783,0.05,2446.5,2446.4,2.04376]
[1725242337455,0.05,2446.3,2446.2,2.04392]
[1725242337799,0.05,2446.3,2446.2,2.59392]
[1725242337954,0.05,2446.3,2446.2,2.04392]
[1725242338993,0.05,2446.2,2446.1,2.04407]
[1725242339173,0.05,2446.2,2446.1,2.59407]
[1725242339348,0.05,2446.2,2446.1,0.55]
[1725242341291,0.05,2446.2,2446.1,2.59407]
[1725242342077,0.05,2446.2,2446.1,0.55]
[1725242344775,0.05,2446.1,2446.0,2.04412]
[1725242345111,0.05,2446.1,2446.0,2.59412]
[1725242345918,0.05,2446.1,2446.0,6.69081128]
[1725242346076,0.05,2446.1,2446.0,16.63531128]
[1725242346822,11.29738,2446.8,2446.0,16.63531128]
[1725242346823,0.05,2446.3,2446.0,15.98098695]
[1725242347121,0.05,2446.5,2446.4,4.08762]
[1725242347273,0.05,2446.5,2446.4,6.10915596]
[1725242348208,0.05,2446.5,2446.4,8.05418442]
[1725242348412,0.05,2446.5,2446.4,9.79808286]
[1725242349270,9.9122,2447.2,2446.4,9.79808286]
[1725242349271,0.05,2446.7,2446.6,4.0873]
[1725242349472,0.05,2446.9,2446.8,4.08696]
[1725242354528,0.05,2446.9,2446.8,2.04348]
[1725242358235,0.05,2447.0,2446.5,2.0437]
[1725242358236,0.1,2446.6,2446.5,2.0437]
[1725242359195,0.1,2446.6,2446.3,2.04386]
[1725242359196,0.1,2446.6,2446.3,4.0877]
[1725242359400,0.0816616,2446.7,2446.3,4.0877]
[1725242359401,0.1,2446.4,2446.3,2.04384]
[1725242359623,0.05,2446.3,2446.2,2.04398]
[1725242359927,0.05,2446.3,2446.1,2.04405]
[1725242359928,0.05,2446.2,2446.1,2.04405]
[1725242361230,0.05,2446.2,2446.1,5.37887413]
[1725242363230,0.05,2446.2,2446.1,7.42294413]
[1725242369846,0.05,2446.5,2446.2,11.86568]
[1725242370052,0.05,2446.5,2446.4,5.47714294]
[1725242370219,0.05,2446.5,2446.4,6.02714294]
[1725242371115,0.05,2446.5,2446.4,15.75084294]
[1725242371317,0.05,2446.5,2446.4,17.73471123]
[1725242371942,0.05,2446.5,2446.4,19.67998511]
[1725242373649,0.05,2446.5,2446.4,9.95628511]
[1725242375012,0.05,2446.5,2446.4,7.97241682]
[1725242376649,0.05,2446.5,2446.4,17.78391682]
[1725242378049,0.05,2446.6,2446.5,4.08746]
[1725242378253,0.05,2446.7,2446.6,4.0873]
[1725242378459,0.05,2446.7,2446.6,6.21494879]
[1725242378624,0.05,2446.7,2446.6,6.76494879]
[1725242379556,0.05,2446.7,2446.6,16.10244879]
[1725242380431,0.05,2446.7,2446.6,21.48089561]
[1725242380675,0.05,2446.9,2446.8,4.08696]
[1725242381846,0.05,2446.9,2446.8,4.63696]
[1725242391253,0.05,2446.9,2446.8,2.04348]
[1725242395680,0.05,2446.9,2446.8,14.65523894]
[1725242395857,0.05,2446.9,2446.8,15.20523894]
[1725242396053,0.05,2446.9,2446.8,16.72576283]
[1725242396259,0.05,2447.0,2446.9,4.0868]
[1725242396481,0.05,2447.0,2446.9,4.71852181]
[1725242397005,0.05,2447.1,2447.0,4.08662]
[1725242397301,0.05,2447.1,2447.0,8.40146026]
[1725242397807,0.1,2447.1,2447.0,8.40146026]
[1725242397989,0.05,2447.1,2447.0,18.34376026]
[1725242398296,0.05,2447.1,2447.0,16.0500178]
[1725242398497,0.1,2447.1,2447.0,16.0500178]
[1725242399444,0.1,2447.3,2447.2,4.0863]
[1725242399609,0.1,2447.3,2447.2,4.6363]
[1725242399806,0.1,2447.3,2447.2,6.02567894]
[1725242400526,0.1,2447.3,2447.2,4.6363]
[1725242400692,0.1,2447.3,2446.2,2.04393]
[1725242400693,0.05,2446.8,2446.7,2.04356]
[1725242400893,0.05,2446.8,2446.7,4.08712]
[1725242401231,0.05,2446.8,2446.7,2.04356]
[1725242401444,0.05,2446.8,2446.4,2.04381]
[1725242401648,0.1,2446.3,2446.2,2.04391]
[1725242401995,0.1,2446.1,2446.0,2.04407]
[1725242402197,0.1,2446.1,2446.0,4.08822]
[1725242402442,0.1,2446.3,2446.2,2.04398]
[1725242403199,0.1,2446.3,2446.2,4.16971168]
[1725242403402,0.1,2446.3,2446.2,2.04398]
[1725242403914,0.1,2446.3,2446.2,2.59398]
[1725242404545,0.1,2446.3,2446.0,2.04414]
[1725242404752,0.1,2446.1,2445.8,2.04432]
[1725242404950,0.1,2445.9,2445.8,2.04432]
[1725242405855,0.1,2445.9,2445.8,5.38045943]
[1725242406528,0.1,2445.9,2445.8,5.93045943]
[1725242408430,0.1,2445.9,2445.8,0.55]
[1725242408627,0.1,2445.9,2445.7,0.55]
[1725242409686,0.1,2445.7,2445.4,2.04461]
[1725242409961,0.05,2445.5,2445.4,2.04461]
[1725242410553,0.1,2445.5,2445.4,2.04461]
[1725242410961,0.1,2445.5,2445.4,16.68749943]
[1725242411186,0.1,2445.7,2445.6,2.04448]
[1725242411333,0.1,2445.7,2445.6,2.12624937]
[1725242411657,0.1,2445.7,2445.6,2.67624937]
[1725242411826,0.1,2445.7,2445.6,2.59448]
[1725242413328,0.1,2445.7,2445.5,5.38062943]
[1725242413710,0.05,2445.5,2445.4,2.04465]
[1725242414679,0.1,2445.5,2445.4,4.83184994]
[1725242414830,0.1,2445.5,2445.4,5.38184994]
[1725242416037,0.05,2445.5,2445.4,5.46362364]
[1725242416231,0.1,2445.5,2445.4,5.46362364]
[1725242417535,0.05,2445.5,2445.4,5.46362364]
[1725242417786,0.05,2445.5,2445.4,15.37902364]
[1725242418076,0.1,2445.5,2445.4,15.37902364]
[1725242418793,0.05,2445.5,2445.4,15.37902364]
[1725242424500,0.05,2445.5,2445.4,17.42367364]
[1725242428906,0.05,2445.5,2445.4,17.80812681]
[1725242429114,0.05,2445.5,2445.4,17.42367364]
[1725242429327,0.05,2445.5,2445.4,17.80812926]
[1725242430058,0.05,2445.5,2445.4,19.19860604]
[1725242432139,0.05,2445.5,2445.4,18.81415042]
[1725242432341,0.05,2445.5,2445.4,19.19861787]
[1725242433143,0.05,2445.5,2445.4,19.8137658]
[1725242433346,0.05,2445.5,2445.4,19.19861787]
[1725242433917,0.05,2445.5,2445.4,19.8137658]
[1725242434251,0.05,2445.5,2445.4,19.19861787]
[1725242434451,0.05,2445.5,2445.4,16.94479216]
[1725242434669,0.1,2445.5,2445.4,0.38446745]
[1725242434951,0.1,2445.3,2445.2,5.48005678]
[1725242435255,0.1,2445.3,2445.2,5.86459249]
[1725242435454,0.1,2445.3,2445.2,5.48005678]
[1725242435814,0.1,2445.3,2445.2,5.86458796]
[1725242436955,0.1,2445.3,2445.2,5.48005678]
[1725242438861,9.5646,2445.3,2445.2,5.48005678]
[1725242439901,0.1,2445.1,2445.0,2.04491]
[1725242440117,0.1,2445.1,2445.0,3.43538678]
[1725242440535,0.1,2445.1,2445.0,2.04491]
[1725242441178,0.1,2445.1,2445.0,3.43538678]
[1725242441371,0.1,2445.1,2445.0,5.48036678]
[1725242441616,0.1,2445.1,2445.0,6.77140346]
[1725242442814,0.1,2445.1,2445.0,5.48036678]
[1725242444513,0.1,2445.1,2445.0,3.43538678]
[1725242445971,0.1,2445.1,2445.0,1.39047678]
[1725242447383,9.5248,2445.1,2444.8,8.82047678]
[1725242447597,0.1,2444.9,2444.8,8.82047678]
[1725242450123,0.1,2444.9,2444.8,1.39047678]
[1725242454009,0.1,2444.9,2444.8,3.43562678]
[1725242454545,0.1,2444.9,2444.8,15.92506846]
[1725242454758,0.1,2444.9,2444.8,6.57886846]
[1725242456555,0.1,2445.1,2445.0,4.08996]
[1725242456839,0.1,2445.1,2445.0,15.66033678]
[1725242457057,0.1,2445.1,2445.0,17.58732774]
[1725242458454,0.1,2445.1,2445.0,6.03043678]
[1725242459552,0.1,2445.1,2445.0,3.43545678]
[1725242459719,0.1,2444.9,2444.8,3.43559678]
[1725242462008,0.1,2444.9,2444.8,2.04512]
[1725242462849,0.05,2444.5,2444.4,5.385247]
[1725242463163,0.1,2444.5,2444.4,2.04543]
[1725242464517,0.05,2444.3,2444.2,5.385437]
[1725242465455,0.1,2443.7,2443.6,2.04616]
[1725242465660,0.1,2443.7,2443.6,7.432137]
[1725242465978,0.1,2443.7,2443.6,8.84061918]
[1725242466332,0.1,2443.7,2443.6,18.01471918]
[1725242466560,9.098,2444.4,2443.8,4.09198]
[1725242466561,0.1,2443.9,2443.8,4.09198]
[1725242466760,0.1,2443.9,2443.8,7.431797]
[1725242466977,0.1,2443.9,2443.8,7.18724492]
[1725242467145,0.1,2443.9,2443.8,5.385807]
[1725242469186,0.1,2444.1,2444.0,4.09164]
[1725242469345,0.1,2444.1,2444.0,4.64164]
[1725242469658,0.1,2444.1,2444.0,4.7234574]
[1725242470395,0.1,2444.1,2444.0,7.981457]
[1725242470565,0.1,2444.1,2444.0,8.06327438]
[1725242472075,0.05,2444.3,2444.2,4.0913]
[1725242472279,0.05,2444.3,2444.2,5.73399035]
[1725242473792,0.05,2444.3,2444.2,18.71570735]
[1725242474380,0.05,2444.4,2444.3,4.09114]
[1725242474705,0.05,2444.7,2444.6,4.09064]
[1725242475001,0.05,2444.7,2444.6,8.06225966]
[1725242475163,0.05,2444.7,2444.6,17.73555966]
[1725242476208,0.05,2444.8,2444.6,17.73555966]
[1725242476209,0.05,2444.8,2444.7,6.13572]
[1725242476412,0.1,2445.0,2444.9,4.09014]
[1725242476567,0.1,2445.0,2444.9,4.17192942]
[1725242476766,0.1,2445.0,2444.9,4.72192942]
[1725242477786,0.1,2445.0,2444.9,8.06174642]
[1725242477956,0.1,2445.0,2444.9,19.28795786]
[1725242479713,0.05,2445.0,2444.9,19.28795786]
[1725242480764,0.1,2445.0,2444.9,19.28795786]
[1725242481863,0.1,2445.0,2444.9,21.33302786]
[1725242482063,0.05,2445.2,2445.1,4.0898]
[1725242482267,0.05,2445.2,2445.1,8.06139937]
[1725242482894,0.05,2445.2,2445.1,10.10629937]
[1725242483915,0.05,2445.4,2445.3,4.08946]
[1725242484081,0.05,2445.4,2445.3,10.105782]
[1725242484409,0.05,2445.6,2445.5,4.08914]
[1725242484610,0.05,2445.6,2445.5,17.925257]
[1725242484786,0.05,2445.6,2445.5,19.9772557]
[1725242485383,0.05,2445.7,2445.6,6.13344]
[1725242485618,0.05,2445.8,2445.7,6.1332]
[1725242485774,0.05,2445.8,2445.7,8.48026914]
[1725242485979,0.05,2445.8,2445.7,12.37008614]
[1725242486176,0.1,2445.8,2445.7,12.37008614]
[1725242489050,0.1,2445.8,2445.7,12.28832479]
[1725242491303,0.05,2445.8,2445.7,12.28832479]
[1725242491526,0.1,2445.8,2445.7,12.28832479]
[1725242492217,0.05,2445.8,2445.7,12.28832479]
[1725242492426,0.1,2445.8,2445.7,12.28832479]
[1725242493633,0.1,2446.0,2445.9,4.08846]
[1725242493996,0.1,2446.0,2445.9,8.06003131]
[1725242494477,0.09705612,2446.0,2445.9,8.06003131]
[1725242495668,0.05,2446.0,2445.9,8.06003131]
[1725242495885,0.09705612,2446.0,2445.9,12.43090547]
[1725242496082,0.04705612,2446.0,2445.9,12.43090547]
[1725242496234,0.09705612,2446.0,2445.9,12.43090547]
[1725242497264,0.05,2446.0,2445.9,12.43090547]
[1725242497669,0.09705612,2446.2,2446.1,4.08814]
[1725242497869,0.09705612,2446.2,2446.1,9.30276527]
[1725242498973,0.04705612,2446.2,2446.1,9.30276527]
[1725242499152,0.09705612,2446.2,2446.1,19.05636527]
[1725242500071,0.09705612,2446.2,2446.1,21.10043527]
[1725242503933,0.04705612,2446.2,2446.1,21.10043527]
[1725242504717,0.04705612,2446.2,2446.1,21.01868555]
[1725242511094,0.04705612,2446.2,2446.1,24.01868555]
[1725242514152,0.04705612,2446.2,2446.1,24.63362982]
[1725242514544,0.04705612,2446.2,2446.1,24.01868555]
[1725242515374,0.04705612,2446.2,2446.1,24.63362982]
[1725242515986,0.04705612,2446.2,2446.1,22.06850071]
[1725242516435,0.04705612,2446.2,2446.1,22.68343302]
[1725242516640,0.04705612,2446.2,2446.1,22.06850071]
[1725242516873,0.04705612,2446.2,2446.1,22.68343302]
[1725242517074,0.04705612,2446.2,2446.1,22.06850071]
[1725242517387,0.04705612,2446.2,2446.1,22.68343302]
[1725242517683,0.09705612,2446.8,2446.7,4.08712]
[1725242517919,0.09705612,2446.8,2446.7,5.47675216]
[1725242521877,0.09705612,2446.8,2446.7,3.43319216]
[1725242522200,5.04299,2447.4,2446.6,2.04365]
[1725242522201,10.08515612,2446.7,2446.6,2.04365]
[1725242523212,10.08515612,2446.7,2446.5,4.08737]
[1725242523474,10.08515612,2446.7,2446.6,2.04365]
[1725242524198,10.08515612,2446.7,2446.5,4.08733]
[1725242525612,10.08515612,2446.7,2446.6,3.43328216]
[1725242527520,0.09705612,2446.4,2446.3,2.04387]
[1725242527684,0.09705612,2446.4,2446.3,3.98350216]
[1725242528013,0.09705612,2446.4,2446.3,6.02740216]
[1725242529475,0.05,2446.4,2446.3,6.10914739]
[1725242529672,0.04705612,2446.6,2446.5,2.04373]
[1725242529917,0.09705612,2446.8,2446.7,4.08712]
[1725242530090,0.09705612,2446.8,2446.7,6.02675216]
[1725242530504,0.09705612,2446.8,2446.7,6.84197383]
[1725242530691,0.09705612,2446.8,2446.7,16.08450027]
[1725242532030,0.09705612,2446.8,2446.7,18.02853263]
[1725242536241,0.09705612,2447.0,2446.9,4.0868]
[1725242536454,0.04705612,2447.0,2446.9,6.76191998]
[1725242536730,0.04705612,2447.0,2446.9,16.00371998]
[1725242537933,0.04705612,2447.0,2446.9,19.00371998]
[1725242538139,0.04705612,2447.0,2446.9,21.3189806]
[1725242538339,0.05,2447.4,2446.9,20.56584512]
[1725242538493,0.05,2447.4,2447.0,3.55]
[1725242538694,0.05,2447.4,2447.1,2.49329551]
[1725242538895,0.05,2447.4,2447.2,0.55]
[1725242539095,0.05,2447.4,2447.3,0.08171003]
[1725242539398,0.05,2447.4,2447.3,0.63171003]
[1725242539923,0.05,2447.4,2447.3,16.18929003]
[1725242540121,0.05,2447.6,2447.5,4.0858]
[1725242540308,0.05,2447.6,2447.5,4.6358]
[1725242541660,0.04705612,2448.1,2447.7,2.04273]
[1725242541935,0.09705612,2448.2,2448.1,4.0848]
[1725242542136,0.05,2448.2,2448.1,6.11704312]
[1725242542302,0.09705612,2448.4,2448.3,4.08446]
[1725242542490,0.09705612,2448.4,2448.3,2.59223]
[1725242542688,0.09705612,2448.4,2448.3,2.04223]
[1725242543895,6.05952755,2449.3,2448.0,3.33366452]
[1725242543896,0.09705612,2448.2,2448.0,3.33366452]
[1725242544195,0.09705612,2448.0,2447.9,2.04252]
[1725242545119,0.09705612,2448.0,2447.9,4.08508]
[1725242545651,0.09705612,2448.0,2447.9,6.11995445]
[1725242549665,0.09705612,2448.0,2447.9,15.15735445]
[1725242550889,0.05,2448.0,2447.9,15.15735445]
[1725242551802,0.09705612,2448.0,2447.9,15.15735445]
[1725242552371,0.05,2448.0,2447.9,15.15735445]
[1725242552611,0.09705612,2448.0,2447.9,15.15735445]
[1725242552809,0.05,2448.0,2447.9,15.15735445]
[1725242553028,0.09705612,2448.0,2447.9,15.15735445]
[1725242562443,0.05,2448.0,2447.9,15.15735445]
[1725242563146,0.05,2448.0,2447.9,17.19991445]
[1725242564705,0.09705612,2448.3,2448.2,4.08462]
[1725242565051,0.09705612,2448.3,2448.2,8.37674652]
[1725242565218,0.09705612,2448.3,2448.2,7.96828452]
[1725242566014,0.09705612,2448.3,2448.2,6.02216995]
[1725242567148,0.09705612,2448.3,2448.2,3.97985995]
[1725242567316,0.09705612,2448.3,2448.2,3.42985995]
[1725242568141,0.09705612,2448.3,2448.2,3.97985995]
[1725242568345,0.09705612,2448.3,2448.2,6.02216995]
[1725242568511,0.09705612,2448.3,2448.2,6.6325625]
[1725242568711,0.09705612,2448.3,2448.2,6.02216995]
[1725242569160,0.09705612,2448.3,2448.2,3.97985995]
[1725242571054,0.09705612,2448.3,2448.2,6.02216995]
[1725242571448,0.09705612,2448.3,2448.2,6.1038483]
[1725242571782,2.04127,2449.5,2448.2,6.1038483]
[1725242571783,0.05,2448.5,2448.4,4.08428]
[1725242571920,0.05,2448.5,2448.4,6.02182995]
[1725242572312,0.05,2448.5,2448.4,16.01692995]
[1725242572814,0.05,2448.5,2448.4,18.05906995]
[1725242573037,0.05,2448.5,2448.4,20.02596643]
[1725242573950,0.05,2448.5,2448.4,17.98382643]
[1725242575453,0.04705612,2448.6,2448.5,4.08412]
[1725242575683,0.05,2448.9,2448.5,3.63166459]
[1725242575826,0.05,2448.9,2448.8,5.47116995]
[1725242576026,0.05,2448.9,2448.8,6.02116995]
[1725242579768,0.05,2448.9,2448.8,6.10282824]
[1725242580456,0.05,2448.9,2448.8,6.02116995]
[1725242580662,0.05,2448.9,2448.8,6.79859906]
[1725242583043,0.05,2448.9,2448.8,1.32742911]
[1725242583243,0.05,2448.9,2448.8,1.93754995]
[1725242583640,0.05,2448.9,2448.8,3.97935995]
[1725242592685,9.7658,2448.9,2448.8,3.97935995]
[1725242593068,0.05,2448.9,2448.8,3.97935995]
[1725242595288,0.05,2448.9,2448.8,5.56155151]
[1725242597776,0.05,2448.9,2448.8,3.97935995]
[1725242599792,0.05,2448.9,2448.8,15.71353499]
[1725242603917,0.04705612,2449.0,2448.9,4.08346]
[1725242604086,0.04705612,2449.0,2448.9,4.63346]
[1725242609029,0.04705612,2449.0,2448.9,14.38376]
[1725242609212,0.04705612,2449.0,2448.9,17.126142]
[1725242611549,0.04705612,2449.0,2448.9,20.126142]
[1725242611725,0.04705612,2449.0,2448.9,22.167872]
[1725242612740,0.04705612,2449.0,2448.9,20.126142]
[1725242612941,0.04705612,2449.0,2448.9,21.51369195]
[1725242617349,0.04705612,2449.0,2448.9,21.8975869]
[1725242618050,0.04705612,2449.0,2448.9,21.51369195]
[1725242625938,0.04705612,2449.4,2449.3,4.08278]
[1725242626430,0.04705612,2449.4,2449.3,4.63278]
[1725242628259,0.05,2449.5,2449.4,4.08262]
[1725242628467,0.05,2449.5,2449.4,4.16426168]
[1725242628628,0.05,2449.5,2449.4,4.71426168]
[1725242631271,0.05,2449.5,2449.4,6.71199279]
[1725242631979,0.04867098,2449.5,2449.4,6.71199279]
[1725242635470,0.04867098,2449.5,2449.4,5.32444284]
[1725242635680,0.04867098,2449.5,2449.4,4.63262]
[1725242636799,0.04867098,2449.5,2449.4,2.59131]
[1725242637102,0.0957271,2449.1,2449.0,29.44157]
[1725242637252,0.0957271,2449.1,2449.0,31.48321]
[1725242637458,0.0957271,2449.1,2449.0,34.770286]
[1725242638252,0.04867098,2449.1,2449.0,34.770286]
[1725242638457,0.04705612,2449.3,2449.0,34.770286]
[1725242638458,0.0957271,2449.3,2449.0,41.050176]
[1725242638757,0.0957271,2449.3,2449.2,1.38754995]
[1725242638971,0.0957271,2449.3,2449.2,1.93754995]
[1725242639960,0.0957271,2449.3,2449.2,2.59148]
[1725242641954,0.0957271,2449.3,2449.2,6.1021602]
[1725242641955,0.04867098,2449.3,2449.2,6.1021602]
[1725242642161,0.0957271,2449.3,2449.2,8.39145622]
[1725242642406,0.0957271,2449.3,2449.2,8.77532295]
[1725242642606,0.04867098,2449.3,2449.2,8.77532295]
[1725242642802,0.04867098,2449.3,2449.2,8.77533017]
[1725242643318,0.04867098,2449.3,2449.2,8.69367992]
[1725242645225,0.0957271,2449.5,2449.4,4.08262]
[1725242645427,0.0957271,2449.5,2449.4,5.01649395]
[1725242646485,0.0957271,2449.5,2449.4,6.4040439]
[1725242646780,0.0957271,2449.5,2449.4,6.40402801]
[1725242646985,0.0957271,2449.5,2449.4,6.08677046]
[1725242649589,0.0957271,2449.5,2449.4,7.47431634]
[1725242653037,0.0957271,2449.5,2449.4,7.09046235]
[1725242653205,0.0957271,2449.5,2449.4,7.47430807]
[1725242653937,0.0957271,2449.7,2449.6,4.08228]
[1725242654136,0.0957271,2449.7,2449.6,6.48531067]
[1725242654933,9.2460271,2449.7,2449.6,2.97498572]
[1725242655922,9.2460271,2449.7,2449.6,5.01612572]
[1725242656143,0.0957271,2449.7,2449.6,3.48476236]
[1725242656947,0.0957271,2449.7,2449.6,5.52587878]